bitfinex/quotes_ETHUSD_20251108
["timestamp","ask_amount","ask_price","bid_price","bid_amount"]
[1762629726549,1.19687625,3383.2,3383.1,0.005]
[1762629726750,1.13027625,3383.2,3383.1,0.005]
[1762629727846,4.08605775,3383.2,3383.1,0.005]
[1762629728261,1.19687625,3383.2,3383.1,0.005]
[1762629728540,1.13027625,3383.2,3383.1,0.005]
[1762629729975,1.13027625,3383.2,3383.1,0.6632]
[1762629730175,0.46352843,3383.9,3383.1,1.1216]
[1762629730475,3.44644273,3384.3,3383.1,1.1216]
[1762629730476,0.27239521,3383.8,3383.3,2.95563491]
[1762629730646,0.27239521,3383.7,3383.6,2.95543208]
[1762629730840,0.02494,3384.1,3384.0,0.4673]
[1762629731178,0.297408,3384.1,3384.0,0.4673]
[1762629731944,0.69217904,3384.1,3383.7,2.95533885]
[1762629732256,0.66723904,3384.0,3383.7,2.95533885]
[1762629732465,0.66723904,3384.0,3383.7,0.4584]
[1762629732466,0.272468,3383.9,3383.7,0.4584]
[1762629732672,0.272468,3383.8,3383.3,2.95562748]
[1762629732977,0.272468,3383.8,3383.2,0.4584]
[1762629732978,0.43842388,3383.7,3383.2,0.4584]
[1762629733373,0.43842388,3383.7,3383.3,2.95563994]
[1762629733564,0.02494,3384.1,3383.7,2.95531306]
[1762629733764,0.02494,3384.1,3384.0,0.4673]
[1762629734067,0.29764656,3384.1,3384.0,3.42238274]
[1762629734375,0.29764656,3384.1,3384.0,3.88078274]
[1762629734686,0.69953153,3384.1,3384.0,3.88078274]
[1762629734889,0.29764656,3384.1,3384.0,4.56734109]
[1762629737268,0.29764656,3384.1,3384.0,4.71454109]
[1762629737894,0.02494,3384.1,3384.0,4.71454109]
[1762629738285,0.02494,3384.1,3384.0,5.97425309]
[1762629738286,1e-08,3384.1,3384.0,5.97425309]
[1762629742624,1e-08,3384.1,3384.0,10.23975709]
[1762629743496,1e-08,3384.1,3384.0,6.37975709]
[1762629744997,1e-08,3384.1,3384.0,9.48375709]
[1762629748292,1e-08,3384.1,3384.0,9.07825309]
[1762629748494,1e-08,3384.1,3384.0,5.97425309]
[1762629748912,1e-08,3384.1,3384.0,5.97525309]
[1762629750420,1e-08,3384.1,3384.0,4.71554109]
[1762629750625,1e-08,3384.1,3384.0,4.02898274]
[1762629750822,1e-08,3384.1,3384.0,5.28869474]
[1762629751021,1e-08,3384.1,3384.0,3.10328274]
[1762629751239,0.27310863,3384.1,3384.0,3.10328274]
[1762629751547,0.81650863,3384.1,3384.0,2.95608274]
[1762629751848,1.21822694,3384.1,3384.0,0.001]
[1762629753232,1.65024351,3384.1,3384.0,0.001]
[1762629753456,1.21822694,3384.1,3384.0,0.001]
[1762629753748,4.17322235,3384.1,3384.0,0.001]
[1762629753949,4.60288617,3384.1,3384.0,0.001]
[1762629754541,1.55242972,3384.1,3384.0,0.001]
[1762629754744,1.23673926,3384.1,3384.0,0.001]
[1762629754936,1.99434571,3384.1,3384.0,0.001]
[1762629755130,4.94934112,3384.1,3384.0,0.001]
[1762629755330,5.37900494,3384.1,3384.0,0.001]
[1762629756044,2.42400953,3384.1,3384.0,0.001]
[1762629756230,0.78333926,3384.1,3384.0,0.001]
[1762629756439,0.36310863,3384.1,3384.0,0.001]
[1762629756955,0.3633747,3384.1,3384.0,0.001]
[1762629757166,0.8167747,3384.1,3384.0,0.001]
[1762629757324,1.23700533,3384.1,3384.0,0.001]
[1762629757524,1.66666915,3384.1,3384.0,0.001]
[1762629757819,1.83333607,3384.1,3384.0,0.001]
[1762629758248,4.78833148,3384.1,3384.0,0.001]
[1762629760158,1.40367225,3384.1,3384.0,0.001]
[1762629760523,4.35866766,3384.1,3384.0,0.001]
[1762629760939,1.40367225,3384.1,3384.0,0.001]
[1762629761146,4.35866766,3384.1,3384.0,0.001]
[1762629761730,4.78833148,3384.1,3384.0,0.001]
[1762629763240,0.405504,3384.0,3383.1,0.005]
[1762629763435,0.2265,3383.2,3383.1,0.005]
[1762629763667,3.87588682,3383.2,3383.1,0.005]
[1762629763828,4.78911731,3383.2,3383.1,0.005]
[1762629764850,3.90905619,3383.2,3383.1,0.005]
[1762629765059,4.59552347,3383.2,3383.1,0.005]
[1762629766035,4.59552347,3383.2,3382.8,0.003]
[1762629766036,2.95604363,3382.9,3382.8,0.003]
[1762629766240,3.72322232,3382.9,3382.8,0.003]
[1762629766441,4.20712232,3382.9,3382.8,0.003]
[1762629767159,2.95665543,3382.2,3382.1,0.005]
[1762629767365,3.82615152,3382.2,3382.1,0.005]
[1762629767542,4.31185152,3382.2,3382.1,0.005]
[1762629768066,4.70514523,3382.2,3382.1,0.005]
[1762629768244,4.31185152,3382.2,3382.1,0.005]
[1762629769070,1.35519609,3382.2,3382.1,0.005]
[1762629769271,4.31185152,3382.2,3382.1,0.005]
[1762629770151,0.27817469,3382.2,3382.1,0.005]
[1762629770445,0.84567469,3382.2,3382.1,0.005]
[1762629770667,3.80233012,3382.2,3382.1,0.005]
[1762629770867,0.84567469,3382.2,3382.1,0.005]
[1762629771551,3.80233012,3382.2,3382.1,0.005]
[1762629772147,4.47821271,3382.2,3382.1,0.005]
[1762629772565,4.48181271,3382.2,3382.1,0.005]
[1762629773860,4.87510642,3382.2,3382.1,0.005]
[1762629774260,4.87510642,3382.2,3381.1,0.005]
[1762629774261,0.405504,3382.1,3381.1,0.005]
[1762629774493,0.192,3381.2,3381.1,0.005]
[1762629774673,0.46537469,3381.2,3381.1,0.005]
[1762629774887,3.42290456,3381.2,3381.1,0.005]
[1762629775073,1.58910121,3381.2,3381.1,0.005]
[1762629775276,4.54663108,3381.2,3381.1,0.005]
[1762629775476,4.95213508,3381.2,3381.1,0.005]
[1762629776206,4.95213508,3381.2,3380.1,0.005]
[1762629776207,2.95787979,3380.8,3380.1,0.005]
[1762629776367,2.95787979,3380.8,3378.3,0.1888]
[1762629776368,0.3062,3379.9,3378.3,0.1888]
[1762629776567,1.1109948,3380.8,3379.3,2.95917531]
[1762629776568,0.27337469,3379.8,3379.3,2.95917531]
[1762629776771,0.27337469,3379.8,3379.1,0.6604]
[1762629776772,0.27337469,3379.7,3379.1,0.005]
[1762629776968,0.27337469,3379.6,3379.1,0.005]
[1762629777180,0.0791,3379.2,3379.1,0.005]
[1762629777380,0.54217469,3379.2,3379.1,0.005]
[1762629777703,0.89230421,3379.2,3379.1,0.005]
[1762629777905,0.54217469,3379.2,3379.1,0.005]
[1762629778420,0.35247469,3379.2,3379.1,0.005]
[1762629778719,0.35647469,3379.2,3379.1,0.005]
[1762629779569,0.83417469,3379.2,3379.1,0.005]
[1762629780337,1.23259354,3379.2,3379.1,0.005]
[1762629780635,0.35647469,3379.2,3379.1,0.005]
[1762629781009,0.83417469,3379.2,3379.1,0.005]
[1762629781199,1.23967869,3379.2,3379.1,0.005]
[1762629781398,4.19895899,3379.2,3379.1,0.005]
[1762629781612,0.83417469,3379.2,3379.1,0.005]
[1762629782141,1.2325886,3379.2,3379.1,0.005]
[1762629782499,4.5973729,3379.2,3379.1,0.005]
[1762629782701,4.1918689,3379.2,3379.1,0.005]
[1762629783038,4.5973729,3379.2,3379.1,0.005]
[1762629784101,4.59429336,3379.2,3379.1,0.006]
[1762629784301,5.41531423,3379.2,3379.1,0.006]
[1762629784507,4.59429336,3379.2,3379.1,0.006]
[1762629786319,5.05413754,3379.2,3379.1,0.006]
[1762629786643,2.95963063,3378.8,3378.1,0.08582687]
[1762629786840,0.405504,3378.9,3378.1,0.08582687]
[1762629786841,0.2003,3378.2,3378.1,0.08582687]
[1762629787136,0.47059515,3378.2,3378.1,0.08582687]
[1762629787314,3.88695144,3378.2,3378.1,0.08582687]
[1762629787517,0.099,3377.2,3375.1,0.1852]
[1762629787701,6.90424838,3376.7,3375.4,0.496]
[1762629787905,4.11452287,3376.6,3375.4,0.496]
[1762629788106,0.4985,3376.2,3375.4,0.496]
[1762629788346,0.4985,3376.2,3375.1,0.1852]
[1762629788347,1.56905461,3376.2,3375.1,0.1852]
[1762629788541,1.76673146,3376.2,3375.1,0.6812]
[1762629788840,11.64810154,3376.2,3375.1,0.005]
[1762629789046,12.39902387,3376.2,3375.1,0.005]
[1762629789340,4.67142137,3376.2,3375.1,0.1852]
[1762629789505,5.07692537,3376.2,3375.1,0.005]
[1762629789711,5.88079603,3376.2,3375.1,0.005]
[1762629790241,0.405504,3376.1,3375.1,0.005]
[1762629790442,2.96235239,3375.7,3375.1,0.005]
[1762629790741,0.27029515,3375.6,3375.1,0.005]
[1762629790944,0.27029515,3375.5,3375.1,0.005]
[1762629791116,0.27029515,3375.4,3375.3,2.96269961]
[1762629791318,0.27029515,3375.4,3375.3,3.62336984]
[1762629791509,0.4562,3376.7,3375.3,1.15889722]
[1762629791510,0.35318821,3376.7,3375.3,1.15889722]
[1762629791840,0.35318821,3376.7,3375.2,1.259712]
[1762629791841,0.4562,3377.6,3376.6,0.6488]
[1762629792016,0.36184949,3377.3,3376.7,2.9614059]
[1762629792217,2.96082908,3377.5,3376.6,0.6488]
[1762629792541,0.4562,3377.6,3376.7,2.96147125]
[1762629792741,0.81804949,3377.6,3376.6,0.6488]
[1762629792904,2.96100583,3377.3,3376.6,0.6488]
[1762629793106,0.4562,3377.5,3376.3,0.1802]
[1762629793318,2.96113542,3377.1,3376.2,2.96183256]
[1762629793522,3.39197212,3377.2,3376.2,2.9618905]
[1762629793721,2.96118585,3377.1,3376.2,2.9618905]
[1762629793918,2.95823724,3377.0,3376.2,2.9618905]
[1762629794143,0.88713893,3377.2,3376.2,0.66001606]
[1762629794445,0.88713893,3377.2,3376.1,0.1802]
[1762629794446,2.96112273,3377.1,3376.3,2.961736]
[1762629794616,2.96121174,3377.0,3376.2,2.96187842]
[1762629794822,0.4562,3377.2,3376.3,2.96174161]
[1762629795031,3.41731398,3377.2,3376.3,2.96174201]
[1762629795225,2.96130802,3376.9,3376.1,3.14219481]
[1762629795546,0.55734949,3376.8,3376.1,0.1802]
[1762629795739,2.96148015,3376.7,3375.9,2.96215625]
[1762629795926,0.36184949,3376.6,3376.0,2.96207802]
[1762629796127,3.15690031,3376.8,3375.8,2.96224359]
[1762629796128,2.96154081,3376.7,3375.8,2.96224359]
[1762629796329,2.96156285,3376.6,3375.8,2.96224359]
[1762629796539,0.36184949,3376.5,3375.8,2.96224359]
[1762629796733,0.4562,3376.6,3375.3,0.496]
[1762629796933,3.32353223,3376.5,3375.7,2.96229092]
[1762629797134,0.4562,3376.6,3375.4,0.496]
[1762629797339,2.9619735,3376.2,3375.4,3.45858632]
[1762629797521,0.148,3375.5,3375.4,3.45858632]
[1762629797737,0.148,3375.5,3375.4,0.496]
[1762629797912,0.148,3375.5,3375.4,0.9646]
[1762629798315,0.148,3375.5,3375.1,0.1852]
[1762629798618,0.1955,3375.9,3375.1,0.1852]
[1762629798832,0.36184949,3375.8,3375.1,0.1852]
[1762629799148,0.81804949,3375.8,3375.1,0.005]
[1762629799348,2.9623572,3375.7,3375.1,0.005]
[1762629799516,2.96244582,3375.6,3375.1,0.005]
[1762629799719,3.32429531,3375.6,3375.1,0.005]
[1762629799953,0.4562,3375.5,3375.1,0.005]
[1762629800452,0.65761856,3375.7,3375.1,0.005]
[1762629801249,0.4562,3375.7,3375.1,0.005]
[1762629801416,2.96248932,3375.6,3375.1,0.005]
[1762629801621,3.41868932,3375.6,3375.1,0.005]
[1762629801844,0.4562,3375.6,3375.1,0.005]
[1762629802052,0.1955,3375.9,3375.2,2.96277933]
[1762629802235,0.148,3375.2,3375.1,3.64407517]
[1762629802668,0.148,3375.2,3375.1,4.77337159]
[1762629803470,0.41809337,3375.2,3375.1,4.11367517]
[1762629805567,0.148,3375.2,3375.1,4.11367517]
[1762629806181,0.62831939,3375.2,3375.1,0.006]
[1762629806458,0.27081939,3375.2,3375.1,0.006]
[1762629807099,0.62931939,3375.2,3375.1,0.006]
[1762629807264,4.8559359,3375.2,3375.1,0.006]
[1762629807470,5.93406791,3375.2,3375.1,0.006]
[1762629807666,14.09802829,3375.2,3375.1,0.006]
[1762629809494,12.43429117,3375.2,3375.1,0.006]
[1762629810508,5.12453879,3375.2,3375.1,0.006]
[1762629810691,0.27081939,3375.2,3375.1,0.006]
[1762629811224,3.23360678,3375.2,3375.1,0.006]
[1762629811581,0.27081939,3375.2,3375.1,0.006]
[1762629811995,3.23360678,3375.2,3375.1,0.006]
[1762629812226,0.27081939,3375.2,3375.1,0.006]
[1762629812527,3.23360678,3375.2,3375.1,0.006]
[1762629813874,4.66574351,3375.2,3375.1,0.006]
[1762629814120,5.06976863,3375.2,3375.1,0.006]
[1762629814285,5.47527263,3375.2,3375.1,1e-08]
[1762629814682,5.94016413,3375.2,3375.1,1e-08]
[1762629815009,3.36864255,3374.8,3374.7,0.001]
[1762629815186,11.51826901,3374.8,3374.7,0.001]
[1762629815394,12.39089413,3374.8,3374.7,0.001]
[1762629816111,0.27081939,3374.8,3374.7,0.001]
[1762629816313,0.27081939,3374.8,3374.7,0.9697]
[1762629816714,0.27081939,3374.8,3374.7,3.93292636]
[1762629816914,0.4686,3376.7,3375.2,2.96278739]
[1762629817115,0.148,3375.5,3375.4,2.96261183]
[1762629817302,0.148,3375.9,3375.5,2.96252407]
[1762629817532,0.148,3375.9,3375.8,2.96226079]
[1762629817739,0.148,3375.9,3375.8,0.4938]
[1762629817918,0.148,3375.9,3375.8,0.9687]
[1762629818319,0.148,3375.9,3375.8,3.93096079]
[1762629818527,0.148,3375.9,3375.8,4.62029889]
[1762629818843,0.148,3375.9,3375.8,1.6580381]
[1762629819540,2.96142063,3376.8,3376.0,2.96206243]
[1762629819740,2.9614484,3376.8,3376.4,0.4938]
[1762629819907,0.40902512,3376.9,3376.4,0.4938]
[1762629820519,0.005,3376.9,3376.4,0.9687]
[1762629820719,0.40402512,3376.8,3376.5,0.4749]
[1762629821114,0.40402512,3376.8,3376.7,0.4938]
[1762629821745,0.40402512,3376.8,3376.1,0.1908]
[1762629821961,0.148,3376.2,3376.1,0.1908]
[1762629822310,0.148,3376.2,3376.1,0.6846]
[1762629822760,0.148,3376.2,3376.1,1.1595]
[1762629823516,0.148,3376.2,3376.1,0.6846]
[1762629823952,0.148,3376.2,3376.1,4.12149757]
[1762629824254,0.148,3376.2,3376.1,0.4938]
[1762629825180,0.148,3376.2,3375.7,3.4435475]
[1762629825383,0.148,3376.0,3375.7,3.4435475]
[1762629825679,0.148,3376.0,3375.6,0.4812]
[1762629825897,0.83496405,3376.5,3375.6,0.4812]
[1762629826189,0.4639,3376.6,3375.3,0.1096]
[1762629826190,2.9620529,3376.1,3375.3,0.1096]
[1762629826387,0.4639,3376.4,3375.5,0.4812]
[1762629826689,0.86792512,3376.4,3375.5,0.4812]
[1762629826846,2.96222503,3375.9,3375.5,0.4812]
[1762629827042,0.40402512,3376.4,3375.5,0.4812]
[1762629827244,0.002,3376.8,3375.8,0.4952]
[1762629827461,0.43093893,3376.6,3375.8,0.4952]
[1762629827668,2.96202448,3376.1,3375.8,0.4952]
[1762629827866,0.40402512,3376.5,3375.8,0.4952]
[1762629828182,3.38782228,3376.4,3375.8,0.4952]
[1762629828485,2.96187911,3376.3,3375.8,0.4952]
[1762629828854,2.96187911,3376.3,3375.5,0.4812]
[1762629828855,2.96214575,3376.0,3375.5,0.4812]
[1762629829096,0.27237092,3375.9,3375.3,0.1096]
[1762629829385,0.27237092,3375.8,3375.3,3.07226255]
[1762629829551,0.27237092,3375.7,3375.0,0.1096]
[1762629829757,0.27237092,3375.6,3375.0,3.07253236]
[1762629829999,0.27237092,3375.5,3375.0,3.07253236]
[1762629830187,3.15328921,3375.9,3375.0,3.07253236]
[1762629830188,0.27237092,3375.4,3375.0,3.07253236]
[1762629830490,3.15328921,3375.9,3375.0,0.1096]
[1762629830491,0.27237092,3375.3,3375.0,0.1096]
[1762629830676,0.27237092,3375.2,3375.0,0.1096]
[1762629830992,0.27237092,3375.1,3375.0,0.5908]
[1762629831196,0.67639604,3375.1,3375.0,3.55376296]
[1762629831365,0.27237092,3375.1,3375.0,4.04896296]
[1762629831964,0.27237092,3375.1,3375.0,1.086]
[1762629832588,0.27237092,3375.1,3375.0,0.4952]
[1762629832787,0.27224758,3375.1,3374.8,0.001]
[1762629832988,0.27224758,3375.0,3374.8,0.001]
[1762629833201,0.27224758,3374.9,3374.8,0.001]
[1762629834160,0.27224758,3374.9,3374.8,4.58151743]
[1762629835297,0.27224758,3374.9,3374.8,3.94053855]
[1762629837024,0.27224758,3374.9,3374.8,0.9774]
[1762629837319,0.42024758,3374.9,3374.8,3.94053855]
[1762629837540,0.42024758,3374.9,3374.8,0.4962]
[1762629837742,0.79974758,3374.9,3374.8,0.001]
[1762629838030,4.78695375,3374.9,3374.8,0.001]
[1762629838234,4.63895375,3374.9,3374.8,0.001]
[1762629839693,2.96313855,3374.8,3374.7,0.001]
[1762629839893,0.74074758,3374.8,3374.7,0.001]
[1762629840125,3.70388613,3374.8,3374.7,0.001]
[1762629840328,4.42688465,3374.8,3374.7,0.001]
[1762629840988,1.46466313,3374.8,3374.7,0.001]
[1762629841193,0.27224758,3374.8,3374.7,0.001]
[1762629841602,0.27224758,3374.8,3374.7,0.4885]
[1762629842129,3.23538613,3374.8,3374.7,0.001]
[1762629842425,0.27224758,3374.8,3374.7,0.001]
[1762629842930,0.27224758,3374.8,3374.7,0.9549]
[1762629843118,0.27224758,3374.8,3374.7,3.91812636]
[1762629843627,0.27224758,3374.8,3374.7,0.9549]
[1762629843816,0.27224758,3374.8,3374.7,0.001]
[1762629844397,3.70378613,3374.8,3374.7,0.001]
[1762629844618,4.80195914,3374.8,3374.7,0.001]
[1762629844835,1.83882059,3374.8,3374.7,0.001]
[1762629845003,4.07908613,3374.8,3374.7,0.001]
[1762629846796,5.31955418,3374.8,3374.7,0.001]
[1762629847331,6.14832725,3374.8,3374.7,0.001]
[1762629848252,6.14832725,3374.8,3372.5,0.4881]
[1762629848253,0.405504,3374.1,3372.5,0.4881]
[1762629848452,0.405504,3373.9,3373.1,0.1678]
[1762629848768,2.9644199,3373.4,3373.1,0.005]
[1762629848933,3.23671403,3373.3,3373.1,0.005]
[1762629849131,0.27224758,3373.2,3373.1,0.005]
[1762629849932,0.27224758,3373.2,3373.1,0.657]
[1762629850448,0.27224758,3373.2,3373.1,1.1421]
[1762629851376,0.27224758,3373.2,3373.1,0.005]
[1762629851770,3.23679163,3373.2,3373.1,0.005]
[1762629852261,0.27224758,3373.2,3373.1,0.005]
[1762629852474,3.23679163,3373.2,3373.1,0.005]
[1762629852837,4.2782403,3373.2,3373.1,0.005]
[1762629853036,5.15573125,3373.2,3373.1,0.005]
[1762629854138,4.69253125,3373.2,3373.1,0.005]
[1762629854457,4.69343125,3373.2,3373.1,0.005]
[1762629854834,5.15573125,3373.2,3373.1,0.005]
[1762629855194,0.27224758,3373.2,3373.1,0.005]
[1762629855394,0.6495877,3373.2,3373.1,0.005]
[1762629855569,3.61413175,3373.2,3373.1,0.005]
[1762629855770,4.86273575,3373.2,3373.1,0.005]
[1762629856080,4.86273575,3373.2,3372.5,0.003]
[1762629856081,2.96507145,3372.6,3372.5,0.003]
[1762629856280,4.37976629,3372.6,3372.5,0.003]
[1762629857015,0.5635,3371.8,3371.1,0.08582687]
[1762629857166,0.405504,3371.6,3371.1,0.08582687]
[1762629857364,0.27224758,3371.5,3371.1,0.28192687]
[1762629857559,0.27224758,3371.4,3371.1,0.08582687]
[1762629857769,3.4347028,3371.2,3371.1,0.08582687]
[1762629858095,0.74064758,3371.2,3371.1,0.08582687]
[1762629858305,3.70615038,3371.2,3371.1,0.08582687]
[1762629858605,4.75977828,3371.2,3371.1,0.08582687]
[1762629859405,5.08631546,3371.2,3371.1,0.08582687]
[1762629859591,4.03268756,3371.2,3371.1,0.08582687]
[1762629859761,1.06638476,3371.2,3371.1,0.08582687]
[1762629859963,0.27224758,3371.2,3371.1,1.25622687]
[1762629860193,2.96517385,3372.5,3371.5,2.96595793]
[1762629860466,0.27112717,3372.4,3371.4,2.96611781]
[1762629860685,0.27112717,3372.3,3371.6,2.96588876]
[1762629860886,0.464,3372.6,3371.5,3.45112832]
[1762629860887,0.27112717,3372.2,3371.5,3.45112832]
[1762629861089,0.1846,3372.7,3372.0,2.96559905]
[1762629861090,0.27112717,3372.1,3372.0,2.96559905]
[1762629861302,0.27112717,3372.1,3372.0,3.26215895]
[1762629861474,0.27112717,3372.1,3372.0,4.23645895]
[1762629861799,0.92913641,3373.5,3372.0,1.2708599]
[1762629861999,0.92913641,3373.5,3372.0,0.4892]
[1762629862000,0.27123574,3373.4,3372.0,0.4892]
[1762629862200,2.96484438,3372.9,3372.0,0.4892]
[1762629862403,0.27123574,3372.8,3372.1,0.4851]
[1762629862600,0.27123574,3372.7,3372.1,0.4851]
[1762629862816,0.27123574,3372.6,3372.2,2.96536047]
[1762629863021,0.27123574,3372.5,3372.3,2.96532898]
[1762629863219,0.27123574,3372.4,3372.3,2.96532898]
[1762629863718,0.41923574,3372.4,3371.6,0.1961]
[1762629863931,0.1846,3372.9,3371.6,0.1961]
[1762629863932,0.148,3371.9,3371.8,2.96577237]
[1762629864118,0.4684,3371.5,3371.1,0.08682687]
[1762629864342,0.4684,3371.5,3370.1,0.005]
[1762629864343,6.74706614,3371.2,3370.1,0.2011]
[1762629864488,0.97306593,3371.1,3370.1,0.2011]
[1762629864833,2.96656679,3370.9,3370.1,0.2011]
[1762629865127,2.96679182,3370.7,3370.1,0.2011]
[1762629865309,3.65697001,3370.6,3370.1,0.2011]
[1762629865516,0.27117088,3370.5,3370.1,0.2011]
[1762629865821,0.69006952,3370.4,3370.1,0.2011]
[1762629866022,0.27117088,3370.3,3370.1,0.2011]
[1762629866217,0.69006952,3370.2,3370.1,0.2011]
[1762629868914,0.69006952,3370.2,3370.1,0.6903]
[1762629870008,0.27117088,3370.2,3370.1,0.6903]
[1762629870222,0.27117088,3370.2,3370.1,3.657571]
[1762629870537,0.27117088,3370.2,3370.1,4.142671]
[1762629870723,0.27117088,3370.2,3370.1,1.1754]
[1762629870931,0.27094985,3370.2,3370.1,1.1754]
[1762629871105,0.65737407,3370.2,3370.1,1.1754]
[1762629871437,0.65737407,3370.2,3370.1,4.142671]
[1762629871601,0.27094985,3370.2,3370.1,4.55694687]
[1762629871803,2.96585514,3371.8,3370.1,1.58967587]
[1762629872034,2.96628399,3371.3,3370.2,3.43431366]
[1762629872235,2.96628399,3371.3,3370.1,0.6903]
[1762629872236,0.42159089,3371.2,3370.6,2.96682533]
[1762629872416,0.42159089,3371.2,3370.5,2.96685724]
[1762629872734,3.38791205,3371.2,3370.4,2.96692015]
[1762629872954,2.96648185,3371.0,3370.3,3.43423892]
[1762629873251,0.42159089,3370.9,3370.4,0.4672]
[1762629873537,0.42159089,3370.9,3370.4,3.43419494]
[1762629873835,0.42159089,3370.9,3370.3,0.6602599]
[1762629873836,0.42159089,3370.9,3370.5,0.4672]
[1762629874039,0.42159089,3370.9,3370.5,3.43408554]
[1762629874243,0.148,3370.8,3370.5,3.43408554]
[1762629874628,0.56959089,3370.8,3370.5,0.4672]
[1762629874843,0.56959089,3370.8,3370.5,3.43408598]
[1762629875043,0.4513,3371.4,3370.1,0.2011]
[1762629875338,2.96699489,3370.5,3370.1,0.2011]
[1762629875649,0.42159089,3370.4,3370.1,0.1931]
[1762629876164,0.42159089,3370.4,3370.1,3.62756377]
[1762629876320,0.42159089,3370.4,3370.3,0.46]
[1762629876830,0.42159089,3370.4,3370.1,0.6603]
[1762629877142,2.96577495,3371.8,3370.6,2.96674638]
[1762629877441,2.96595279,3371.6,3370.7,3.56009251]
[1762629877642,0.57317851,3371.8,3370.7,0.59337533]
[1762629877874,0.4513,3371.7,3370.7,2.96667089]
[1762629878070,2.96595088,3371.6,3370.1,0.1931]
[1762629878234,0.42159089,3371.6,3370.2,2.96709636]
[1762629878432,2.96640685,3371.1,3370.3,2.96708342]
[1762629878774,3.38808441,3371.0,3370.3,2.96708342]
[1762629878988,3.38808441,3371.0,3370.3,0.65946393]
[1762629878989,3.38808607,3371.0,3370.3,0.65946393]
[1762629879169,0.42159089,3371.0,3370.3,2.96702668]
[1762629879548,0.42159089,3371.0,3370.2,3.43431262]
[1762629879752,0.42159089,3371.0,3370.5,2.96686512]
[1762629879963,0.42159089,3371.0,3370.5,3.43406512]
[1762629880163,3.16162719,3371.9,3370.9,0.46]
[1762629880164,2.96577495,3371.8,3370.9,0.46]
[1762629880374,2.96600516,3371.6,3370.9,0.46]
[1762629880576,0.38155605,3371.7,3370.9,0.46]
[1762629880775,3.34743139,3371.7,3371.0,3.43367688]
[1762629880980,2.96587534,3371.7,3371.0,0.4672]
[1762629881176,0.38155605,3371.6,3370.6,2.96681796]
[1762629881397,0.38155605,3371.6,3370.7,0.4672]
[1762629881562,0.002,3371.5,3370.7,3.43390839]
[1762629881769,2.96637548,3371.2,3370.7,0.4672]
[1762629881990,2.96621481,3371.3,3370.3,0.4672]
[1762629882291,0.002,3371.5,3370.4,2.96699073]
[1762629882458,0.38845021,3371.4,3370.2,0.4672]
[1762629882647,0.38845021,3371.4,3370.3,0.4672]
[1762629882648,2.96636303,3371.2,3370.3,0.4672]
[1762629882853,0.38155605,3371.1,3370.5,2.96689958]
[1762629883049,0.002,3371.5,3370.6,0.0296683]
[1762629883257,0.002,3371.5,3371.3,0.46]
[1762629883698,0.27240194,3371.4,3371.3,0.46]
[1762629884054,0.27240194,3371.4,3371.3,0.82144638]
[1762629884282,0.27240194,3371.4,3371.3,4.24176119]
[1762629884687,0.27240194,3371.4,3371.3,4.27142333]
[1762629884863,0.27240194,3371.4,3371.3,4.24176119]
[1762629885344,0.27240194,3371.4,3371.3,4.38976119]
[1762629888418,0.27240194,3371.4,3371.3,1.27554638]
[1762629888581,0.27240194,3371.4,3371.3,3.88031481]
[1762629889105,0.27240194,3371.4,3371.3,4.02831481]
[1762629889693,0.27240194,3371.4,3371.3,3.88031481]
[1762629892419,0.27240194,3371.4,3371.3,3.42621481]
[1762629892843,0.27240194,3371.4,3371.3,2.96621481]
[1762629893230,0.27240194,3371.4,3371.2,2.96627565]
[1762629893560,0.002,3371.5,3371.0,0.148]
[1762629893561,0.27240194,3371.3,3371.0,0.148]
[1762629893765,0.27240194,3371.2,3371.1,2.96639079]
[1762629895152,0.27240194,3371.2,3371.0,3.11445012]
[1762629895153,0.27240194,3371.2,3371.0,2.96645785]
[1762629895351,0.27240194,3371.1,3370.9,2.96656236]
[1762629895537,0.27240194,3371.1,3370.2,10.3]
[1762629895538,0.27240194,3371.0,3370.8,2.9666319]
[1762629895852,0.42087701,3370.9,3370.8,2.9666548]
[1762629896052,0.42087701,3370.9,3370.7,2.96670825]
[1762629896229,0.40903489,3370.8,3370.6,2.96681024]
[1762629896429,0.40903489,3370.8,3370.7,2.96674281]
[1762629896637,0.40903489,3370.8,3370.5,2.96691405]
[1762629896844,0.148,3370.6,3370.5,2.96691405]
[1762629897156,0.148,3370.6,3370.3,2.96702545]
[1762629897317,0.148,3370.6,3370.1,0.1941]
[1762629897852,0.148,3370.4,3370.1,0.006]
[1762629898043,0.148,3370.3,3370.1,2.97321592]
[1762629898241,0.148,3370.3,3370.2,2.96718295]
[1762629898242,0.58770985,3370.3,3370.2,2.96718295]
[1762629898554,0.42084043,3370.3,3370.2,2.96718295]
[1762629898757,1.25651184,3370.3,3370.1,2.97326867]
[1762629899078,0.148,3370.3,3370.1,0.006]
[1762629899460,0.58770985,3370.3,3370.1,0.006]
[1762629899643,0.148,3370.3,3370.1,0.006]
[1762629899847,0.58770985,3370.3,3370.1,0.006]
[1762629900146,0.4051,3370.2,3370.1,0.006]
[1762629900362,4.55567104,3370.2,3370.1,0.006]
[1762629901657,4.96117504,3370.2,3370.1,0.006]
[1762629902091,2.96786537,3369.5,3369.1,0.005]
[1762629902294,2.96731771,3370.1,3369.1,0.005]
[1762629902295,0.5934,3369.2,3369.1,0.005]
[1762629902445,4.00100681,3369.2,3369.1,0.005]
[1762629902776,4.47700681,3369.2,3369.1,0.005]
[1762629903277,1.50894318,3369.2,3369.1,0.005]
[1762629903580,4.47700681,3369.2,3369.1,0.005]
[1762629903779,5.2214997,3369.2,3369.1,0.005]
[1762629903956,2.25343607,3369.2,3369.1,0.005]
[1762629904154,5.2214997,3369.2,3369.1,0.005]
[1762629904362,1.91444718,3369.2,3369.1,0.005]
[1762629904692,4.88251081,3369.2,3369.1,0.005]
[1762629905175,5.15443739,3369.2,3369.1,0.005]
[1762629905873,2.24641914,3369.2,3369.1,0.005]